bitfinex-derivatives/quotes_ETHF0:USTF0_20260131
["timestamp","ask_amount","ask_price","bid_price","bid_amount"]
[1769889420864,0.15705135,2395.2,2393.1,6.54538483]
[1769889420865,0.15705135,2394.8,2393.1,1.46604188]
[1769889421064,0.36614135,2394.7,2392.6,4.93114995]
[1769889421365,0.15705135,2394.6,2392.8,0.148193]
[1769889421667,0.15705135,2394.6,2392.5,3.491193]
[1769889421961,0.36616135,2394.6,2392.5,0.00485475]
[1769889422265,0.15705135,2394.5,2392.5,0.00485475]
[1769889422465,0.15705135,2393.8,2392.5,0.00485475]
[1769889422660,0.16155339,2393.8,2392.5,0.00485475]
[1769889423264,2.43917638,2395.4,2393.3,0.148193]
[1769889423464,8.99403844,2396.1,2392.5,0.00485475]
[1769889423465,0.15705135,2396.1,2394.2,0.148193]
[1769889423760,0.15705135,2397.1,2394.7,0.148193]
[1769889424356,0.15705135,2396.7,2394.7,0.0048584]
[1769889425758,0.36597135,2396.7,2394.7,0.0048584]
[1769889425962,0.15705135,2396.6,2394.7,0.0048584]
[1769889429668,0.14813677,2396.3,2394.7,0.0048584]
[1769889429974,0.14813677,2396.1,2393.7,3.70623383]
[1769889430166,0.14813677,2395.4,2393.5,3.70623383]
[1769889430366,0.14813677,2395.3,2393.3,3.70623383]
[1769889430567,0.14813677,2395.3,2393.4,3.70623383]
[1769889430769,0.14813677,2395.3,2393.2,5.09311873]
[1769889431074,0.15323312,2395.3,2393.2,5.09632356]
[1769889431666,0.15323312,2395.3,2393.3,5.09311873]
[1769889432668,0.14813677,2395.2,2393.2,4.94021311]
[1769889432872,0.14813677,2395.1,2393.2,0.00320483]
[1769889433064,0.14813677,2395.1,2393.3,0.15611045]
[1769889433268,0.14813677,2395.1,2393.4,0.15611045]
[1769889433465,0.14813677,2395.1,2393.2,4.94021311]
[1769889433773,0.14813677,2395.1,2393.2,0.00320483]
[1769889434163,0.20912,2394.4,2392.5,3.343]
[1769889434369,0.14813677,2394.2,2392.5,3.343]
[1769889434568,0.14813677,2394.2,2392.1,4.93700828]
[1769889434569,0.14813677,2393.9,2391.8,5.09311873]
[1769889434970,0.14813677,2393.9,2391.8,4.93700828]
[1769889435170,0.14813677,2393.9,2391.8,0.00497428]
[1769889436268,0.14813677,2393.6,2391.8,0.00497428]
[1769889436470,0.15249742,2393.6,2391.8,0.00497428]
[1769889436773,0.14813677,2393.5,2391.8,0.00497428]
[1769889436968,0.14813677,2393.5,2391.9,0.15611045]
[1769889437569,0.3636588,2393.5,2392.1,0.15611045]
[1769889438172,0.16268132,2395.1,2392.7,0.20926]
[1769889438374,0.16268132,2395.1,2393.5,4.93700828]
[1769889438576,0.16268132,2395.1,2393.0,0.20924]
[1769889438577,0.16268132,2395.1,2393.6,4.93700828]
[1769889439276,0.16669726,2395.1,2393.6,4.9401452]
[1769889439676,0.16669726,2395.1,2393.6,4.94109899]
[1769889440177,0.00401594,2395.1,2393.8,0.00095379]
[1769889440479,0.16268132,2395.9,2394.1,4.93700828]
[1769889440776,0.16268132,2395.9,2394.2,8.28100828]
[1769889440973,0.16268132,2395.9,2394.2,3.344]
[1769889441178,0.16268132,2395.8,2393.8,4.93700828]
[1769889441373,0.16602869,2395.8,2393.6,4.9401452]
[1769889441573,0.16602869,2395.8,2393.7,2.452]
[1769889443275,0.16744822,2395.8,2393.9,4.93700828]
[1769889443476,0.00334737,2395.8,2394.4,4.93700828]
[1769889443680,0.00334737,2395.8,2394.6,4.93700828]
[1769889443880,0.00334737,2395.8,2394.8,4.93700828]
[1769889445177,0.00334737,2395.8,2394.9,4.93700828]
[1769889445380,0.16388208,2396.7,2395.3,4.93700828]
[1769889445583,0.16388208,2396.7,2395.4,4.93700828]
[1769889445773,0.16388208,2396.7,2395.1,4.93700828]
[1769889445979,0.16388208,2396.7,2394.8,4.93700828]
[1769889446175,0.16388208,2396.7,2394.7,4.93700828]
[1769889446379,0.16436418,2396.4,2394.7,0.00384197]
[1769889446979,0.16436418,2396.1,2394.7,0.00384197]
[1769889447285,0.1624432,2395.6,2393.7,4.93700828]
[1769889447584,0.1624432,2395.6,2393.6,2.451]
[1769889447775,0.16295105,2395.4,2393.7,3.71528015]
[1769889447974,0.16295105,2395.4,2393.8,3.71528015]
[1769889448178,0.16295105,2395.4,2393.8,0.00366433]
[1769889449186,0.16295105,2395.4,2393.8,3.71894448]
[1769889449579,0.16295105,2395.4,2393.9,3.71528015]
[1769889449785,0.16295105,2395.4,2394.1,3.71528015]
[1769889449988,0.1623564,2396.3,2394.4,3.71528015]
[1769889450487,0.1623564,2396.3,2394.8,3.71528015]
[1769889450877,0.1623564,2396.3,2394.9,3.71528015]
[1769889451083,0.1623564,2396.3,2395.0,3.71528015]
[1769889451379,0.1623564,2396.3,2395.2,3.71528015]
[1769889451583,0.00397816,2396.7,2395.3,3.71528015]
[1769889451584,0.16645543,2396.7,2395.3,3.71528015]
[1769889451976,0.16645543,2396.7,2395.2,3.71528015]
[1769889452182,0.16645543,2396.7,2395.0,3.71528015]
[1769889452682,0.16247727,2396.6,2394.8,3.71528015]
[1769889452879,0.16247727,2396.6,2394.9,3.71528015]
[1769889453080,0.16247727,2396.6,2395.0,3.71528015]
[1769889453288,0.16247727,2396.6,2394.9,3.71528015]
[1769889453886,0.16247727,2396.6,2395.0,3.71528015]
[1769889454282,0.16247727,2396.6,2395.1,3.71528015]
[1769889454679,0.16247727,2396.6,2395.2,3.71528015]
[1769889455085,0.16247727,2396.6,2395.3,3.71528015]
[1769889455288,0.16247727,2396.6,2395.2,3.71528015]
[1769889455484,0.16246042,2396.2,2394.6,3.71528015]
[1769889455686,0.16239496,2396.0,2394.4,3.71528015]
[1769889455888,0.16239496,2395.9,2394.0,4.93700828]
[1769889456388,0.16239496,2395.9,2394.3,4.93700828]
[1769889456592,0.16239496,2395.9,2394.2,4.93700828]
[1769889456991,0.16239496,2395.9,2394.3,4.93700828]
[1769889457192,0.16239496,2395.9,2394.2,4.93700828]
[1769889458285,0.16199637,2395.8,2394.0,4.93700828]
[1769889458888,0.37102637,2395.5,2393.8,0.00366433]
[1769889459083,0.37102637,2395.4,2393.8,0.00366433]
[1769889459287,0.16199637,2395.3,2393.8,0.00366433]
[1769889459883,0.16199637,2395.3,2393.2,13.62395014]
[1769889459884,0.1619423,2394.4,2393.0,4.93700828]
[1769889460089,0.1619423,2394.4,2392.6,4.93855002]
[1769889460391,0.1619423,2394.4,2392.7,4.93700828]
[1769889460590,0.1619423,2394.4,2392.6,4.93855002]
[1769889460782,0.16593725,2394.4,2392.6,4.94157536]
[1769889460987,0.16593725,2394.4,2392.6,0.00302534]
[1769889461390,0.16593725,2394.4,2392.6,0.00473247]
[1769889461590,0.16593725,2394.4,2392.6,4.94174075]
[1769889461790,0.16593725,2394.4,2392.6,0.00302534]
[1769889462292,0.16211911,2393.5,2391.4,0.00134502]
[1769889462698,0.16211911,2393.5,2390.9,2.66042]
[1769889462699,0.16211911,2393.4,2391.2,6.19623166]
[1769889462893,0.16211911,2393.2,2391.0,6.19757668]
[1769889463095,0.16211911,2393.0,2390.9,2.451]
[1769889463394,0.16211911,2392.8,2390.9,0.00530719]
[1769889464903,0.16269456,2392.6,2390.9,0.00530719]
[1769889465094,0.16562266,2392.6,2390.9,0.00530719]
[1769889465294,0.16269456,2392.4,2390.9,0.00530719]
[1769889468694,0.16254009,2391.9,2389.8,3.70772629]
[1769889468894,0.16254009,2391.3,2389.0,3.70772629]
[1769889469094,0.16254009,2391.1,2388.8,2.452]
[1769889469296,0.16254009,2390.9,2388.5,3.70772629]
[1769889469497,0.16254009,2390.9,2388.5,3.70930476]
[1769889469698,0.16200238,2390.8,2388.5,0.00548866]
[1769889469902,0.16200238,2390.6,2388.5,0.00548866]
[1769889470408,0.16200238,2390.3,2388.5,0.00391019]
[1769889470705,3.346,2390.6,2388.5,0.00391019]
[1769889470706,0.16200238,2390.0,2388.5,0.00391019]
[1769889471409,0.37152238,2389.8,2387.7,0.00157847]
[1769889471609,0.16200238,2389.5,2387.5,0.00107962]
[1769889472013,0.16225181,2389.9,2387.7,0.00107962]
[1769889472310,0.16225181,2390.3,2388.4,0.00107962]
[1769889472610,0.52104717,2390.3,2388.4,0.00107962]
[1769889472816,0.16225181,2390.2,2388.0,0.00107962]
[1769889473211,0.16225181,2390.2,2388.2,0.00107962]
[1769889474010,5.80512952,2390.9,2388.4,0.20964]
[1769889474011,0.16437629,2390.8,2388.4,0.20964]
[1769889474609,0.37381629,2390.8,2387.7,7.31358344]
[1769889474815,0.16437629,2390.7,2387.8,5.801]
[1769889475010,0.16437629,2390.6,2387.9,0.20969]
[1769889475321,0.16437629,2390.6,2388.0,0.20968]
[1769889477624,0.16437629,2390.6,2388.1,0.20967]
[1769889478031,0.16433564,2389.9,2387.7,0.00453719]
[1769889478231,0.37384564,2389.9,2387.7,0.00453719]
[1769889478528,0.16433564,2389.7,2387.7,0.00453719]
[1769889479725,5.803,2390.1,2387.7,0.00453719]
[1769889479726,0.16396742,2389.5,2387.7,0.00453719]
[1769889480316,0.16396742,2389.4,2387.7,0.00453719]
[1769889482127,0.16423802,2390.3,2387.7,0.00453719]
[1769889482525,0.16423802,2390.3,2388.0,0.20968]
[1769889482723,0.16423802,2390.3,2387.7,0.00453719]
[1769889482724,0.16423802,2390.0,2387.7,0.00453719]
[1769889482930,0.16423802,2390.0,2387.9,0.20969]
[1769889483230,0.16423802,2390.0,2388.3,0.20965]
[1769889483530,0.16423802,2390.0,2388.3,2.66565]
[1769889484028,0.16423802,2390.0,2388.3,6.01565]
[1769889484436,0.37374802,2390.0,2388.3,5.806]
[1769889484727,0.16468645,2389.9,2388.3,5.806]
[1769889485721,0.16468645,2389.9,2388.3,3.35]
[1769889489228,0.16468645,2389.9,2388.3,7.05772629]
[1769889489530,0.16468645,2389.9,2388.4,3.70772629]
[1769889489730,0.1668947,2390.6,2388.6,3.70772629]
[1769889490029,0.1668947,2390.6,2388.5,3.70772629]
[1769889490228,0.1668947,2390.6,2388.7,3.70772629]
[1769889490428,0.1668947,2390.6,2388.6,3.70772629]
[1769889491225,0.1668947,2390.6,2388.8,3.70772629]
[1769889491426,0.1668947,2390.2,2388.8,3.70772629]
[1769889491631,0.1668947,2390.2,2388.4,3.71720733]
[1769889492129,0.1668947,2390.2,2388.5,3.71720733]
[1769889493133,0.1668947,2390.2,2388.6,3.71720733]
[1769889493631,0.1668947,2390.2,2388.7,3.71720733]
[1769889493932,0.1668947,2390.2,2389.1,3.71720733]
[1769889494327,0.1668947,2390.2,2389.2,3.71720733]
[1769889495032,0.1668947,2390.2,2389.1,3.71720733]
[1769889495233,0.1668947,2390.2,2389.2,3.71720733]
[1769889495435,0.1668947,2390.2,2388.9,3.71720733]
[1769889496132,0.1668947,2390.2,2389.0,3.71720733]
[1769889496333,0.1668947,2390.2,2388.8,4.86962435]
[1769889496636,0.1668947,2390.2,2388.9,4.86962435]
[1769889497235,0.1668947,2390.2,2389.0,4.86962435]
[1769889498141,2.44269185,2390.7,2389.1,4.86962435]
[1769889498438,0.16971952,2390.8,2390.1,3.75354761]
[1769889498637,0.00412952,2390.9,2390.4,3.75354761]
[1769889498830,0.16971952,2391.5,2390.6,3.75354761]
[1769889499030,0.50666379,2391.5,2390.6,3.75354761]
[1769889499237,0.16971952,2391.5,2390.8,2.49876664]
[1769889499437,0.16971952,2391.5,2390.9,2.49876664]
[1769889499837,6.15145017,2391.9,2391.1,2.49876664]
[1769889500331,6.15145017,2391.9,2391.0,2.49876664]
[1769889500534,6.15145017,2391.9,2391.1,2.49876664]
[1769889500736,6.15675802,2391.9,2391.1,2.49876664]
[1769889501040,6.15675802,2391.9,2391.0,2.49876664]
[1769889501336,6.15675802,2391.9,2390.7,3.73950349]
[1769889501536,6.15675802,2391.9,2390.1,5.02952076]
[1769889501736,6.15675802,2391.9,2390.1,0.15989641]
[1769889502144,0.20937,2391.6,2390.1,0.15989641]
[1769889502337,8.59944987,2391.9,2389.6,4.86962435]
[1769889502537,2.44269185,2391.8,2389.6,4.86962435]
[1769889502744,2.44269185,2391.8,2389.5,4.86962435]
[1769889502947,0.20939,2391.3,2389.7,0.16293423]
[1769889503145,0.20941,2391.1,2389.8,0.16293423]
[1769889503346,0.20941,2391.1,2389.8,0.0032538]
[1769889504444,2.65205185,2391.7,2389.8,0.17384268]
[1769889504646,0.20936,2391.7,2389.8,0.17384268]
[1769889505338,0.20936,2391.7,2389.8,5.04346703]
[1769889505544,0.20936,2391.7,2390.0,0.17278959]
[1769889505744,0.20936,2391.7,2390.2,0.17278959]
[1769889508347,6.15675802,2391.9,2390.1,4.86962435]
[1769889508547,0.2094,2391.2,2389.8,0.0032538]
[1769889508744,0.20941,2391.1,2389.8,0.0032538]
[1769889510650,0.20943,2390.9,2389.8,0.0032538]
[1769889510855,2.456,2390.8,2389.8,0.0032538]
[1769889511246,0.20946,2390.6,2389.4,4.86962435]
[1769889511446,0.20946,2390.6,2389.2,5.04089323]
[1769889512353,0.20946,2390.6,2389.2,0.17515943]
[1769889512964,0.20946,2390.5,2389.2,0.00389055]
[1769889513565,3.35,2390.7,2389.5,0.17226713]
[1769889513760,3.35,2390.7,2389.6,0.17226713]
[1769889513961,3.35,2390.7,2389.7,0.17226713]
[1769889514557,3.35,2390.7,2389.2,0.00389055]
[1769889514763,3.35,2390.7,2389.3,0.17226713]
[1769889516569,0.20945,2390.6,2389.3,0.17226713]
[1769889516762,0.20945,2390.6,2389.2,0.00389055]
[1769889517671,0.20945,2390.6,2389.2,0.17315417]
[1769889518067,2.456,2390.5,2389.2,0.17315417]
[1769889520571,2.456,2390.5,2389.2,0.00389055]
[1769889521267,2.456,2390.5,2389.2,0.17352799]
[1769889521864,2.44269185,2390.9,2389.2,0.17352799]
[1769889522070,2.456,2390.9,2389.2,0.17352799]
[1769889524467,2.65215185,2390.6,2389.2,0.17352799]
[1769889524673,3.69515993,2390.5,2389.2,0.17352799]
[1769889524870,0.20946,2390.6,2389.2,0.17352799]
[1769889525164,2.44269185,2390.7,2389.2,0.17352799]
[1769889525165,2.44269185,2390.9,2389.2,0.17352799]
[1769889525364,2.456,2390.9,2389.2,0.17352799]
[1769889526766,3.71554771,2390.8,2389.2,0.17352799]
[1769889526971,0.35075802,2391.9,2389.9,0.1678293]
[1769889527171,0.56009802,2391.9,2390.0,0.1678293]
[1769889527373,3.71490687,2391.8,2390.0,0.1678293]
[1769889527567,0.20937,2391.6,2390.0,0.1678293]
[1769889527768,6.39255691,2391.5,2390.0,0.1678293]
[1769889528070,3.93696755,2391.4,2390.0,0.1678293]
[1769889528271,0.20938,2391.4,2390.0,0.1678293]
[1769889528871,6.7254817,2391.3,2389.2,0.00389055]
[1769889529070,2.44269185,2390.3,2388.2,0.16769611]
[1769889529272,8.24869185,2390.2,2388.2,0.16769611]
[1769889529472,2.44269185,2390.0,2388.2,0.16769611]
[1769889529670,2.44269185,2389.1,2387.2,0.16719587]
[1769889529868,2.44269185,2388.7,2387.2,0.16719587]
[1769889530071,2.44269185,2388.6,2387.2,0.17222202]
[1769889530377,3.84241985,2388.6,2387.2,0.17222202]
[1769889530572,0.20963,2388.6,2387.2,0.17222202]
[1769889530773,0.00393629,2388.7,2387.2,0.17222202]
[1769889531676,0.34012481,2388.7,2387.2,0.17222202]
[1769889534477,2.44269185,2388.5,2386.7,0.16782887]
[1769889534678,0.20971,2387.7,2385.6,0.16782887]
[1769889534880,5.808,2387.6,2385.6,0.16782887]
[1769889535474,5.808,2387.6,2385.6,0.17283622]
[1769889535771,0.20965,2388.3,2385.6,0.17283622]
[1769889535978,2.457,2388.2,2385.6,0.17283622]
[1769889536578,2.457,2388.2,2385.8,0.16778466]
[1769889536778,2.457,2388.2,2385.9,0.16778466]
[1769889541285,0.34012481,2388.7,2386.1,0.16764167]
[1769889541488,0.34012481,2388.7,2386.3,0.16764167]
[1769889542483,0.20969,2387.9,2386.3,0.16764167]
[1769889542685,5.811,2387.8,2386.3,0.16764167]
[1769889543686,2.458,2388.1,2386.3,0.16764167]
[1769889545282,0.20968,2388.0,2386.3,0.16764167]
[1769889545484,2.458,2388.1,2386.3,0.16764167]
[1769889545985,0.20971,2387.7,2386.3,0.16764167]
[1769889546987,2.458,2388.1,2386.3,0.16764167]
[1769889547191,0.34012481,2388.7,2386.3,0.16764167]
[1769889547487,2.458,2388.6,2386.3,0.16764167]
[1769889547687,0.20964,2388.5,2386.3,0.16764167]
[1769889549488,2.458,2388.6,2386.3,0.16764167]
[1769889549489,0.20968,2388.1,2386.3,0.16764167]
[1769889549688,0.20968,2388.0,2386.3,0.16764167]
[1769889549894,5.811,2387.9,2386.3,0.16764167]
[1769889550192,6.02069,2387.9,2386.3,0.16764167]
[1769889553299,0.47,2387.8,2386.3,0.16764167]
[1769889553597,2.459,2387.7,2386.3,0.16764167]
[1769889553997,0.20972,2387.6,2385.7,0.17445114]
[1769889554199,0.67972,2387.6,2385.7,0.17445114]
[1769889554989,0.20972,2387.5,2385.7,0.17445114]
[1769889555193,0.47,2387.6,2385.7,0.17445114]
[1769889555395,0.67968,2388.0,2385.7,0.17445114]
[1769889555698,2.459,2387.9,2385.8,0.17462473]
[1769889556299,0.20965,2388.3,2385.8,0.17462473]
[1769889556495,5.813,2388.2,2385.8,0.17462473]
[1769889556689,5.813,2388.2,2385.9,0.20986]
[1769889556894,3.354,2388.5,2386.1,0.17462473]
[1769889557091,2.459,2388.4,2386.1,0.17462473]
[1769889557295,2.459,2388.4,2386.2,0.17462473]
[1769889557895,2.98643146,2388.7,2386.2,0.17462473]
[1769889558096,3.90374481,2388.7,2386.4,0.17459124]
[1769889558401,8.80701929,2388.6,2386.7,0.17459124]
[1769889558695,2.43668665,2388.4,2386.7,0.17459124]
[1769889559000,2.43668665,2388.3,2386.7,0.17459124]
[1769889559195,2.64634665,2388.2,2386.7,0.17459124]
[1769889559398,2.43668665,2388.0,2386.7,0.17459124]
[1769889559898,4.89568665,2387.9,2386.7,0.17459124]
[1769889560098,3.91133264,2387.8,2386.7,0.17459124]
[1769889561700,2.43668665,2387.6,2386.2,0.17426607]
[1769889561997,2.43668665,2387.4,2386.2,0.17426607]
[1769889562197,3.91133264,2387.3,2386.2,0.17426607]
[1769889562396,2.459,2387.2,2386.2,0.17426607]
[1769889563198,0.47,2387.1,2386.2,0.17426607]
[1769889564402,4.02875346,2387.0,2385.7,0.1755294]
[1769889564603,0.00370783,2387.0,2385.7,0.1755294]
[1769889565798,2.44039448,2387.0,2385.6,0.18087107]
[1769889565998,4.03087645,2387.0,2385.6,0.18087107]
[1769889566302,4.02753797,2386.9,2385.6,0.18087107]
[1769889566501,0.00370783,2387.0,2385.6,0.18087107]
[1769889566804,4.02768424,2386.9,2385.6,0.18087107]
[1769889567000,0.00370783,2387.0,2385.6,0.18087107]
[1769889567196,4.02782571,2386.9,2385.6,0.18087107]
[1769889567399,0.00370783,2387.0,2385.6,0.18087107]
[1769889567400,2.44039448,2387.0,2385.6,0.18087107]
[1769889567804,6.46751462,2387.0,2385.6,0.18087107]
[1769889568302,4.02712014,2386.9,2385.6,0.18087107]
[1769889569212,0.00370783,2387.0,2385.6,0.18087107]
[1769889569418,4.02597961,2386.9,2385.6,0.18087107]
[1769889569715,0.00370783,2387.0,2385.6,0.18087107]
[1769889569909,4.02205472,2386.9,2385.6,0.18087107]
[1769889570109,0.00370783,2387.0,2385.6,0.18087107]
[1769889570716,4.01876756,2386.9,2385.6,0.18087107]
[1769889570917,0.00370783,2387.0,2385.6,0.18087107]
[1769889571109,4.01941732,2386.9,2385.6,0.18087107]
[1769889571309,0.00370783,2387.0,2385.6,0.18087107]
[1769889571611,4.02271162,2386.9,2385.6,0.18087107]
[1769889571812,0.00370783,2387.0,2385.6,0.18087107]
[1769889572007,4.02358446,2386.9,2385.6,0.18087107]
[1769889572216,0.00370783,2387.0,2385.6,0.18087107]
[1769889572409,4.02438834,2386.9,2385.6,0.18087107]
[1769889572610,4.02429861,2386.8,2385.6,0.18087107]
[1769889572804,2.44039448,2387.0,2385.6,0.18087107]
[1769889572805,2.459,2386.7,2385.6,0.18087107]
[1769889581018,0.00370783,2387.0,2385.6,0.18087107]
[1769889581323,2.46,2386.9,2385.6,0.18087107]
[1769889584523,0.20981,2386.5,2384.8,13.84041203]
[1769889584727,4.1288641,2386.4,2384.8,0.17378703]
[1769889585025,4.07841257,2386.3,2384.8,0.17378703]
[1769889585215,2.46,2386.2,2384.8,0.17378703]
[1769889585413,2.46,2386.2,2384.8,0.17853046]
[1769889587024,0.20982,2386.4,2384.8,0.17853046]
[1769889587216,0.20982,2386.4,2383.8,19.46880665]
[1769889587217,0.20992,2385.3,2383.8,7.41183107]
[1769889587416,6.53520786,2385.2,2383.7,0.1726832]
[1769889587616,2.46,2385.2,2383.7,0.1726832]
[1769889588324,2.46476299,2385.2,2383.7,0.17684977]
[1769889588723,2.78977933,2385.2,2383.7,0.17684977]
[1769889588916,4.07840748,2385.1,2383.7,0.17684977]
[1769889589121,2.78977933,2385.2,2383.7,0.17684977]
[1769889589519,7.43681936,2385.1,2383.7,0.17684977]
[1769889589720,3.356,2385.1,2383.7,0.00416657]
[1769889589916,3.356,2385.1,2383.7,0.17709477]
[1769889590321,4.07632115,2385.0,2383.7,0.17709477]
[1769889590515,4.07632115,2384.9,2383.7,0.1729282]
[1769889590717,0.15336737,2384.7,2382.4,7.41183107]
[1769889590922,0.15336737,2384.7,2382.3,7.41183107]
[1769889591324,0.15336737,2384.7,2382.1,2.46]
[1769889591325,0.15336737,2384.7,2382.2,7.41183107]
[1769889591726,0.15336737,2384.7,2382.2,7.41496939]
[1769889592127,2.46,2384.9,2382.5,7.41183107]
[1769889592426,2.46,2384.9,2382.6,5.817]
[1769889592726,2.61443174,2384.9,2382.7,0.1478958]
[1769889593127,2.61443174,2384.9,2382.9,0.1478958]
[1769889593128,2.46,2384.9,2382.9,0.1478958]
[1769889593327,0.32977933,2385.2,2382.9,0.1478958]
[1769889593527,0.32977933,2385.2,2383.0,0.1478958]
[1769889593729,0.32977933,2385.2,2383.1,0.1478958]
[1769889594421,0.15443174,2385.0,2383.1,0.1478958]
[1769889594617,0.15443174,2384.8,2383.1,0.1478958]
[1769889594823,0.15443174,2384.7,2383.1,0.1478958]
[1769889595025,0.15443174,2384.5,2383.1,0.1478958]
[1769889595729,0.15443174,2384.4,2382.8,0.1478958]
[1769889595924,0.15443174,2384.2,2382.8,0.1478958]
[1769889596126,0.15443174,2384.1,2382.8,0.1478958]
[1769889596519,0.15443174,2384.1,2382.2,0.00313832]
[1769889597825,0.15443174,2383.7,2382.2,0.00313832]
[1769889598022,0.15443174,2383.5,2382.2,0.00313832]
[1769889598326,0.15844344,2383.5,2382.2,0.00313832]
[1769889599829,0.15844344,2383.5,2382.2,0.15103412]
[1769889602929,0.0040117,2383.5,2382.2,0.15103412]
[1769889603129,3.51143174,2384.2,2382.3,0.3580758]
[1769889603427,0.15443174,2383.9,2382.4,0.1478958]
[1769889603632,0.15443174,2383.6,2382.2,0.00313832]
[1769889603930,0.21012,2383.0,2381.4,0.1478958]
[1769889604134,0.15443174,2382.9,2381.4,0.1478958]
[1769889604831,0.15443174,2382.9,2381.4,0.15091259]
[1769889605036,0.15935548,2382.9,2381.4,0.15091259]
[1769889605334,0.00492374,2382.9,2381.4,0.15091259]
[1769889605526,0.15443174,2383.6,2381.9,0.1478958]
[1769889605724,3.357,2384.2,2382.1,0.1478958]
[1769889606235,0.15443174,2384.1,2382.1,0.1478958]
[1769889606535,0.15842908,2384.1,2382.1,0.1478958]
[1769889607430,0.1500667,2383.9,2382.1,0.1478958]
[1769889607826,0.1500667,2383.7,2382.1,0.1478958]
[1769889608026,0.1500667,2384.0,2382.1,0.1478958]
[1769889612931,0.00399734,2384.1,2382.5,0.14855303]
[1769889613330,0.00399734,2384.1,2382.6,0.21015]
[1769889613537,0.00399734,2384.1,2382.7,0.14855303]
[1769889613734,0.00399734,2384.1,2382.9,0.14855303]
[1769889613931,0.32501634,2385.2,2383.1,0.14855303]
[1769889614239,0.1500667,2385.2,2383.3,0.14855303]
[1769889614834,0.00389375,2385.2,2383.5,6.56359851]
[1769889615038,0.15396045,2385.2,2383.7,0.14855303]
[1769889616042,0.00389375,2385.2,2383.7,0.14855303]
[1769889616232,0.00389375,2385.2,2383.8,0.14855303]
[1769889617839,0.1500667,2386.2,2384.3,0.14855303]
[1769889618042,0.1500667,2386.0,2384.3,0.14855303]
[1769889618247,0.32848372,2386.2,2384.4,0.14855303]
[1769889618438,0.1500667,2386.4,2384.5,0.14855303]
[1769889618844,0.1500667,2386.3,2384.5,0.14855303]
[1769889619541,0.1500667,2386.2,2384.5,0.14855303]
[1769889620542,0.00307538,2386.4,2384.7,0.14855303]
[1769889620744,0.32329768,2386.8,2385.1,0.14855303]
[1769889621043,2.49251432,2387.8,2385.3,0.14855303]
[1769889621044,0.1500667,2386.9,2385.3,0.14855303]
[1769889621636,0.1500667,2386.8,2385.3,0.15252552]
[1769889622043,0.15314208,2386.8,2385.3,0.15252552]
[1769889622339,0.1500667,2386.4,2385.3,0.15252552]
[1769889622543,0.15314208,2386.8,2385.3,0.15252552]
[1769889622744,0.1500667,2386.8,2385.3,0.15252552]
[1769889622939,0.00307538,2386.6,2385.3,0.15252552]
[1769889623142,0.1500667,2386.5,2385.3,0.15252552]
[1769889623542,0.1500667,2386.2,2384.4,6.20497548]
[1769889623739,0.1500667,2385.9,2384.3,0.14855303]
[1769889623942,0.1500667,2386.2,2384.3,0.14855303]
[1769889624345,0.1500667,2385.9,2384.3,0.14855303]
[1769889624546,0.1500667,2385.9,2384.3,0.1515433]
[1769889624750,0.15314208,2385.9,2384.3,0.1515433]
[1769889625844,0.1500667,2386.2,2384.3,0.1515433]
[1769889626240,0.1500667,2385.9,2384.3,0.1515433]
[1769889626441,0.1500667,2385.6,2384.3,0.1515433]
[1769889626645,0.15314208,2385.6,2384.3,0.1515433]
[1769889626845,0.00307538,2385.5,2384.3,0.1515433]
[1769889627045,0.15314208,2385.4,2384.3,0.1515433]
[1769889627246,0.00307538,2385.2,2384.3,0.1515433]
[1769889627446,0.00514371,2385.2,2384.3,0.1515433]
[1769889627647,0.00307538,2385.1,2384.3,0.1515433]
[1769889629049,0.00307538,2384.5,2383.7,0.14855303]
[1769889629251,0.1500667,2384.7,2382.9,0.14855303]
[1769889629953,0.1500667,2385.1,2383.1,0.14855303]
[1769889630249,0.00514371,2385.2,2383.3,0.14855303]
[1769889630942,0.15314208,2385.1,2383.3,0.14855303]
[1769889631149,0.1500667,2384.8,2383.3,0.14855303]
[1769889631644,0.00514371,2385.2,2383.3,0.14855303]
[1769889631645,0.1500667,2385.1,2383.3,0.14855303]
[1769889631841,0.15314208,2385.1,2383.3,0.14855303]
[1769889632045,0.1500667,2384.8,2383.3,0.14855303]
[1769889632441,0.1500667,2384.6,2383.3,0.14855303]
[1769889632648,0.1500667,2384.9,2383.3,0.14855303]
[1769889633552,0.1500667,2384.9,2383.4,0.14855303]
[1769889634246,0.1500667,2384.9,2383.5,0.14855303]
[1769889634651,0.15314208,2384.9,2383.5,0.14855303]
[1769889634856,0.00514371,2385.2,2383.5,0.14855303]
[1769889635043,2.70237432,2386.0,2383.2,6.20497548]
[1769889635044,0.1500667,2386.0,2384.2,4.96966798]
[1769889635245,0.1500667,2386.0,2384.4,0.14855303]
[1769889635446,0.1500667,2386.0,2384.5,0.14855303]
[1769889635647,0.1500667,2386.4,2384.7,0.14855303]
[1769889635847,0.1500667,2386.2,2384.8,0.14855303]
[1769889636045,0.1500667,2385.9,2384.8,0.00375996]
[1769889636250,0.00307538,2385.4,2384.3,0.14855303]
[1769889636548,0.00307538,2385.8,2384.3,5.11822101]
[1769889636755,0.1500667,2385.7,2384.4,0.14855303]
[1769889636951,0.1500667,2385.7,2384.1,4.96966798]
[1769889637157,0.15475769,2385.3,2384.1,0.15785163]
[1769889637354,0.15168231,2385.3,2384.1,0.15785163]
[1769889637555,0.00307538,2384.8,2384.1,0.004175]
[1769889637747,0.15168231,2385.0,2384.1,0.004175]
[1769889638055,0.00307538,2384.7,2384.1,0.004175]
[1769889638451,0.20989,2385.7,2384.1,0.004175]
[1769889638452,0.15168231,2385.3,2384.1,0.15785163]
[1769889638658,0.00307538,2385.2,2384.1,0.15785163]
[1769889638859,0.00307538,2385.1,2384.1,0.15785163]
[1769889639063,0.15168231,2386.1,2384.1,0.15785163]
[1769889639249,0.15168231,2385.7,2384.3,0.15367663]
[1769889639455,0.15475769,2385.5,2384.3,5.12334461]
[1769889639751,0.15168231,2385.8,2384.4,0.15367663]
[1769889639957,0.15168231,2385.4,2384.3,4.96966798]
[1769889640153,0.15475769,2384.9,2384.3,4.96966798]
[1769889640363,0.15168231,2385.3,2384.1,5.12751961]
[1769889640562,0.15168231,2385.3,2384.1,0.004175]
[1769889640760,0.15168231,2385.0,2384.1,0.004175]
[1769889641061,0.15168231,2384.9,2384.1,0.004175]
[1769889641461,0.00307538,2384.7,2384.1,0.004175]
[1769889641657,0.15168231,2384.9,2384.1,0.004175]
[1769889641857,0.00307538,2384.6,2384.1,0.004175]
[1769889642350,0.15168231,2384.9,2384.1,0.16722903]
[1769889643261,0.15841857,2385.5,2384.1,0.16722903]
[1769889644162,0.15841857,2385.5,2384.2,0.16305403]
[1769889645456,0.15841857,2385.5,2384.1,0.004175]
[1769889647560,0.15841857,2385.5,2384.1,0.16722903]
[1769889648356,0.15841857,2385.5,2384.1,0.004175]